{"text_format":"1","workbook":"xlsx","n_sheets":2,"sheets":["受講報告書","BD"],"not_rendered":{"charts":0,"images":0,"macros":0,"external_links":0,"defined_names":1,"comments":0,"pivot_tables":0},"unopened":[],"bounds":{"document_bytes":16777216,"sheet_cells":100000,"rows_first":2000,"rows_last":500,"rows_between":2000,"halvings":0,"cell_chars":16384,"cell_head_chars":4096},"cells_cut":0,"cells_raw":0,"read":"whole","date_system":"1900"}

{"sheet":"受講報告書","index":0,"n_rows":26,"n_cols":3,"rows_kept":26,"cut":false,"hidden":false,"merged":[[1,0,1,3],[12,0,12,3],[14,2,14,3],[15,2,15,3],[13,2,13,3],[5,2,5,3],[16,2,16,3],[22,2,24,3],[25,2,25,3],[17,2,17,3],[18,2,18,3],[19,2,19,3],[20,2,20,3],[21,2,21,3]]}
["（参考様式）"]
["令和5年度宮城県有料老人ホーム集団指導　受講報告書"]
[]
[null,null,"報告日"]
[]
[{"$f":"IFERROR(\"　\"&\"宮城県\"&B19&\"長\"&\"　\"&\"殿\",\"　宮城県○○保健福祉事務所長　殿　←※所管に応じて自動転記\")","v":"　宮城県○○保健福祉事務所長　殿　←※所管に応じて自動転記"},null,"基本情報"]
[null,null,"施設所在地"]
[null,null,"施設名"]
[null,null,"報告者役職"]
[null,null,"報告者氏名（担当者）"]
[null,null,"※報告者については原則、管理者としてください。"]
[]
["　標記について、下記のとおり受講しましたので、報告します。"]
["項目","内容","備考"]
["施設名",{"$f":"D8","v":0},"基本情報より転記。"]
["施設の所在地",{"$f":"D7","v":0},"基本情報より転記。"]
["所在市町村",null,"←プルダウンより選択してください。"]
["施設の種類",null,"←プルダウンより選択してください。\n※「有料老人ホーム」又は「サービス付き高齢者向け住宅（有料老人ホーム該当）」から選択。"]
["管轄の保健福祉事務所",{"$f":"VLOOKUP(B17,BD!C:E,3,FALSE)","v":{"$error":"#N/A"}},"←所在市町村により自動入力されます。"]
["連絡先（電話番号）"]
["連絡先（メールアドレス）"]
["集団指導資料の確認日",null,"施設の管理者が確認した日を記載ください。"]
["集団指導資料の共有方法１",null,"←施設の職員への共有方法を選択してください。\n※複数回答可。"]
["集団指導資料の共有方法２"]
["集団指導資料の共有方法３"]
["備考",null,"※集団指導の共有方法１～３にて「その他」を選択された場合、具体的に記載願います。"]

{"sheet":"BD","index":1,"n_rows":40,"n_cols":11,"rows_kept":40,"cut":false,"hidden":true,"merged":[]}
["市区町村","所管","市区町村","所管",null,null,"仙台市",1,null,null,"１　資料の回覧"]
["仙台市青葉区","仙台市内","仙台市","仙台市内",null,null,"石巻市",2,{"$f":"VLOOKUP(G2,C:D,2,FALSE)","v":"東部"},null,"２　勉強会の実施"]
["仙台市宮城野区","仙台市内","仙台市","仙台市内",null,null,"塩竈市",3,{"$f":"VLOOKUP(G3,C:D,2,FALSE)","v":"仙台"},null,"３　その他"]
["仙台市若林区","仙台市内","仙台市","仙台市内",null,null,"気仙沼市",4,"気仙沼"]
["仙台市太白区","仙台市内","仙台市","仙台市内",null,null,"白石市",5,"仙南"]
["仙台市泉区","仙台市内","仙台市","仙台市内",null,null,"名取市",6,"仙台"]
["白石市","仙南","白石市","仙南",{"$f":"D7&\"保健福祉事務所\"","v":"仙南保健福祉事務所"},null,"角田市",7,"仙南"]
["角田市","仙南","角田市","仙南",{"$f":"D8&\"保健福祉事務所\"","v":"仙南保健福祉事務所"},null,"多賀城市",8,"仙台"]
["刈田郡蔵王町","仙南","蔵王町","仙南","仙南保健福祉事務所",null,"岩沼市",9,"仙台"]
["刈田郡七ヶ宿町","仙南","七ヶ宿町","仙南","仙南保健福祉事務所",null,"登米市",10,"東部"]
["柴田郡大河原町","仙南","大河原町","仙南","仙南保健福祉事務所",null,"栗原市",11,"北部"]
["柴田郡村田町","仙南","村田町","仙南","仙南保健福祉事務所",null,"東松島市",12,"東部"]
["柴田郡柴田町","仙南","柴田町","仙南","仙南保健福祉事務所",null,"大崎市",13,"北部"]
["柴田郡川崎町","仙南","川崎町","仙南","仙南保健福祉事務所",null,"富谷市",14,"仙台"]
["伊具郡丸森町","仙南","丸森町","仙南","仙南保健福祉事務所",null,"蔵王町",15,"仙南"]
["塩竈市","仙台","塩竈市","仙台","仙台保健福祉事務所",null,"七ヶ宿町",16,"仙南"]
["名取市","仙台","名取市","仙台","仙台保健福祉事務所",null,"大河原町",17,"仙南"]
["多賀城市","仙台","多賀城市","仙台","仙台保健福祉事務所",null,"村田町",18,"仙南"]
["岩沼市","仙台","岩沼市","仙台","仙台保健福祉事務所",null,"柴田町",19,"仙南"]
["富谷市","仙台","富谷市","仙台","仙台保健福祉事務所",null,"川崎町",20,"仙南"]
["亘理郡亘理町","仙台","亘理町","仙台","仙台保健福祉事務所",null,"丸森町",21,"仙南"]
["亘理郡山元町","仙台","山元町","仙台","仙台保健福祉事務所",null,"亘理町",22,"仙台"]
["宮城郡松島町","仙台","松島町","仙台","仙台保健福祉事務所",null,"山元町",23,"仙台"]
["宮城郡七ヶ浜町","仙台","七ヶ浜町","仙台","仙台保健福祉事務所",null,"松島町",24,"仙台"]
["宮城郡利府町","仙台","利府町","仙台","仙台保健福祉事務所",null,"七ヶ浜町",25,"仙台"]
["黒川郡大和町","仙台","大和町","仙台","仙台保健福祉事務所",null,"利府町",26,"仙台"]
["黒川郡大郷町","仙台","大郷町","仙台","仙台保健福祉事務所",null,"大和町",27,"仙台"]
["黒川郡大衡村","仙台","大衡村","仙台","仙台保健福祉事務所",null,"大郷町",28,"仙台"]
["大崎市","北部","大崎市","北部","北部保健福祉事務所",null,"大衡村",29,"仙台"]
["加美郡色麻町","北部","色麻町","北部","北部保健福祉事務所",null,"色麻町",30,"北部"]
["加美郡加美町","北部","加美町","北部","北部保健福祉事務所",null,"加美町",31,"北部"]
["遠田郡涌谷町","北部","涌谷町","北部","北部保健福祉事務所",null,"涌谷町",32,"北部"]
["遠田郡美里町","北部","美里町","北部","北部保健福祉事務所",null,"美里町",33,"北部"]
["栗原市","栗原","栗原市","北部","北部保健福祉事務所",null,"女川町",34,"東部"]
["石巻市","東部","石巻市","東部","東部保健福祉事務所",null,"南三陸町",35,"気仙沼"]
["東松島市","東部","東松島市","東部","東部保健福祉事務所"]
["牡鹿郡女川町","東部","女川町","東部","東部保健福祉事務所"]
["登米市","登米","登米市","東部","東部保健福祉事務所"]
["気仙沼市","気仙沼","気仙沼市","気仙沼","気仙沼保健福祉事務所"]
["本吉郡南三陸町","気仙沼","南三陸町","気仙沼","気仙沼保健福祉事務所"]